Workbook

Sheet Лист1
A1: Школа | B1: ГБОУ "Пестречинская школа-интернат" | E1: Возраст | F1: 7-17 лет | I1: День | J1: 2023-09-01
A3: Прием пищи | B3: Раздел меню | C3: Блюдо | D3: Выход, г | E3: Белки | F3: Жиры | G3: Углеводы | H3: Калорийность | I3: № рец. | J3: Цена
A4: Обед | B4: закуска | C4: Икра свекольная | D4: 80 | E4: 3.3 | F4: 6.4 | G4: 8 | H4: 104 | I4: 56
B5: 1 блюдо | C5: Рассольник | D5: 250 | E5: 2.9 | F5: 4.2 | G5: 13.9 | H5: 105 | I5: 89
B6: 2 блюдо | C6: Жаркое по домашнему | D6: 200 | E6: 22.3 | F6: 21.3 | G6: 17.17 | H6: 352 | I6: 258
B7: хлеб рж. | C7: Хлеб ржаной | D7: 150 | E7: 12.7 | F7: 4.9 | G7: 65.4 | H7: 388
B8: Напиток | C8: Сок | D8: 200 | E8: 0.5 | F8: 0.1 | G8: 9.9 | H8: 43 | I8: 442
B9: итого | D9: =SUM(D4:D8) -> 880 | E9: =SUM(E4:E8) -> 41.7 | F9: =SUM(F4:F8) -> 36.9 | G9: =SUM(G4:G8) -> 114.37 | H9: =SUM(H4:H8) -> 992
A10: Полдник | B10: булочное | C10: Оладьи с повидлом | D10: 80 | E10: 6 | F10: 9.7 | G10: 32.8 | H10: 243 | I10: 444
B11: напиток | C11: Какао | D11: 200 | E11: 2.9 | F11: 2.5 | G11: 24.8 | H11: 134 | I11: 433
B12: фрукты | C12: Апельсин | D12: 200 | E12: 1.8 | F12: 0.4 | G12: 14.2 | H12: 86
B13: итого | D13: =SUM(D10:D12) -> 480 | E13: =SUM(E10:E12) -> 10.7 | F13: =SUM(F10:F12) -> 12.6 | G13: =SUM(G10:G12) -> 71.8 | H13: =SUM(H10:H12) -> 463
A14: Ужин | B14: гарнир | C14: Каша пшеничная | D14: 150 | E14: 5.4 | F14: 6.1 | G14: 23.8 | H14: 172.3 | I14: 189
B15: 2 блюдо | C15: Рыба тушеная | D15: 80 | E15: 10.6 | F15: 6.4 | G15: 3.4 | H15: 114.4 | I15: 231
B16: закуска | C16: Тертая морковь | D16: 80 | E16: 1 | F16: 4 | G16: 9.2 | H16: 77.4 | I16: 331
B17: хлеб бел. | C17: Хлеб пшеничный | D17: 150 | E17: 11.5 | F17: 3.6 | G17: 80.1 | H17: 381
B18: масло | C18: Масло | D18: 10 | E18: 0.1 | F18: 8.3 | G18: 0.1 | H18: 74.8 | I18: 13
B19: напиток | C19: Чай с молоком | D19: 200 | E19: 3.2 | F19: 2.4 | G19: 20.1 | H19: 115.4 | I19: 394
B20: итого | D20: =SUM(D14:D19) -> 670 | E20: =SUM(E14:E19) -> 31.8 | F20: =SUM(F14:F19) -> 30.8 | G20: =SUM(G14:G19) -> 136.7 | H20: =SUM(H14:H19) -> 935.3
A21: Второй ужин | B21: кисломол. | C21: Ряженка | D21: 200 | E21: 6 | F21: 2 | G21: 8.4 | H21: 80 | I21: 435
B22: кондитерка | C22: Пряник | D22: 30 | E22: 0.8 | F22: 1 | G22: 23.2 | H22: 106.2
B23: итого | D23: =SUM(D21:D22) -> 230 | E23: =SUM(E21:E22) -> 6.8 | F23: =SUM(F21:F22) -> 3 | G23: =SUM(G21:G22) -> 31.6 | H23: =SUM(H21:H22) -> 186.2
B24: Итого за день: | D24: 2260 | E24: 91 | F24: 120.2 | G24: 354.47 | H24: 2576.5
